{"text_format":"1","workbook":"xlsx","n_sheets":2,"sheets":["График","Раздел 3"],"not_rendered":{"charts":0,"images":0,"macros":1,"external_links":1,"defined_names":9,"comments":0,"pivot_tables":0},"unopened":[],"bounds":{"document_bytes":16777216,"sheet_cells":100000,"rows_first":2000,"rows_last":500,"rows_between":2000,"halvings":0,"cell_chars":16384,"cell_head_chars":4096},"cells_cut":0,"cells_raw":0,"read":"whole","date_system":"1900"}

{"sheet":"График","index":0,"n_rows":28,"n_cols":47,"rows_kept":28,"cut":false,"hidden":false,"merged":[[4,11,4,12],[4,13,4,14],[4,15,4,16],[0,6,0,7]]}
[null,null,null,null,null,null,"Весь период"]
[null,null,null,null,null,null,"2016-09-01","2016-09-30"]
[]
[]
[null,null,null,null,null,null,null,null,null,null,null,"Период 1",null,"Период 2",null,"Период 3",null,"2016-09-01","2016-09-02","2016-09-03","2016-09-04","2016-09-05","2016-09-06","2016-09-07","2016-09-08","2016-09-09","2016-09-10","2016-09-11","2016-09-12","2016-09-13","2016-09-14","2016-09-15","2016-09-16","2016-09-17","2016-09-18","2016-09-19","2016-09-20","2016-09-21","2016-09-22","2016-09-23","2016-09-24","2016-09-25","2016-09-26","2016-09-27","2016-09-28","2016-09-29","2016-09-30"]
[null,"№ п/п","№ п/с","Наименование работ","Ед изм","Объём","ТЗ","Раб",1,2,3,"Начало","Окончание","Начало","Окончание","Начало","Окончание","2016-09-01","2016-09-02","2016-09-03","2016-09-04","2016-09-05","2016-09-06","2016-09-07","2016-09-08","2016-09-09","2016-09-10","2016-09-11","2016-09-12","2016-09-13","2016-09-14","2016-09-15","2016-09-16","2016-09-17","2016-09-18","2016-09-19","2016-09-20","2016-09-21","2016-09-22","2016-09-23","2016-09-24","2016-09-25","2016-09-26","2016-09-27","2016-09-28","2016-09-29","2016-09-30"]
[null,1,null,"Разборка покрытий полов: из керамических плиток","100 м2",0.78200000000000003,null,null,6,null,null,"2016-09-01",{"$f":"IF(ISBLANK(L7),\"\",WORKDAY.INTL(L7,I7-1,11))","v":"2016-09-07"},null,{"$f":"IF(ISBLANK(N7),\"\",WORKDAY.INTL(N7,J7-1,11))","v":""},null,{"$f":"IF(ISBLANK(P7),\"\",WORKDAY.INTL(P7,K7-1,11))","v":""},1,1,1,null,1,1,1]
[null,2,null,"Разборка покрытий полов: из линолеума","100 м2",0.93799999999999994,null,null,2,2,null,"2016-09-02",{"$f":"IF(ISBLANK(L8),\"\",WORKDAY.INTL(L8,I8-1,11))","v":"2016-09-03"},"2016-09-06",{"$f":"IF(ISBLANK(N8),\"\",WORKDAY.INTL(N8,J8-1,11))","v":"2016-09-07"},null,{"$f":"IF(ISBLANK(P8),\"\",WORKDAY.INTL(P8,K8-1,11))","v":""},null,1,1,null,null,1,1]
[null,3,null,"Разборка покрытий полов: цементных","100 м2",0.78200000000000003,null,null,2,null,null,"2016-09-05","2016-09-06",null,"",null,"",null,null,null,null,1,1]
[null,4,null,"Разборка плинтусов: деревянных и из пластмассовых материалов","100 м",0.45800000000000002,null,null,1,null,null,"2016-09-05","2016-09-05",null,"",null,"",null,null,null,null,1]
[null,5,null,"Устройство стяжек: цементных толщиной 20 мм","100 м2",0.78200000000000003,null,null,3,4,7,"2016-09-07","2016-09-09","2016-09-12","2016-09-15","2016-09-19","2016-09-26",null,null,null,null,null,null,1,1,1,null,null,1,1,1,1,null,null,null,1,1,1,1,1,1,null,1]
[null,6,null,"Армирование подстилающих слоев и набетонок  ","1 т",4.4164000000000002E-2,null,null,2,2,null,"2016-09-06","2016-09-07","2016-09-10","2016-09-12",null,"",null,null,null,null,null,1,1,null,null,1,null,1]
[null,7,null,"Устройство гидроизоляции обмазочной:  мастикой \"Гипердесмо\" один слой","100 м2",0.78200000000000003,null,null,2,2,null,"2016-09-09","2016-09-10","2016-09-17","2016-09-19",null,"",null,null,null,null,null,null,null,null,1,1,null,null,null,null,null,null,1,null,1]
[null,8,null,"Устройство покрытий из плит керамогранитных размером: 40х40 см","100 м2",0.78200000000000003,null,null,5,7,null,"2016-09-14","2016-09-19","2016-09-23","2016-09-30",null,"",null,null,null,null,null,null,null,null,null,null,null,null,null,1,1,1,1,null,1,null,null,null,1,1,null,1,1,1,1,1]
[]
[]
[null,null,null,null,null,null,null,null,null,null,1,"Как макросом проставить 1 как в графике, что соответствует датам Периода 1,2,3?"]
[null,null,null,null,null,null,null,null,null,null,null,"Иногда 1 будут проставляться вручную, поэтому это разделено на 2 макроса"]
[null,null,null,null,null,null,null,null,null,null,2,"На листе Раздел 3, есть столбец Наименование работ по дням."]
[null,null,null,null,null,null,null,null,null,null,null,"В чем суть, нужен макрос для заполнения работ в "]
[null,null,null,null,null,null,null,null,null,null,null,"по данным из Графика."]
[null,null,null,null,null,null,null,null,null,null,null,"Берется наименование работ и вставляется в Раздел 3 в соответствующую дату, т.е. там где 1"]
[null,null,null,null,null,null,null,null,null,null,null,"И так, каждая работа каждого из периодов"]
[null,null,null,null,null,null,null,null,null,null,null,"Если в день пересекаются несколько наименований работ, от они просто добавляются через пробел (лучше через точку пробел)"]
[null,null,null,null,null,null,null,null,null,null,null,"Раздел 3 заполнен для примера."]
[]
[null,null,null,null,null,null,null,null,null,null,null,"P.S. Здесь только 8 Наименований работ, но их гораздо больше"]
[null,null,null,null,null,null,null,null,null,null,null,"И весь период работ, тоже гораздо дольший."]

{"sheet":"Раздел 3","index":1,"n_rows":34,"n_cols":2,"rows_kept":34,"cut":false,"hidden":false,"merged":[]}
[]
[]
[]
["Дата","Наименование работ по дням"]
["2016-09-01","Разборка покрытий полов: из керамических плиток"]
["2016-09-02","Разборка покрытий полов: из керамических плиток Разборка покрытий полов: из линолеума"]
["2016-09-03","Разборка покрытий полов: из керамических плиток Разборка покрытий полов: из линолеума"]
["2016-09-04"]
["2016-09-05","Разборка покрытий полов: из керамических плиток Разборка покрытий полов: цементных Разборка плинтусов: деревянных и из пластмассовых материалов"]
["2016-09-06","Разборка покрытий полов: из керамических плиток Разборка покрытий полов: из линолеума Разборка покрытий полов: цементных Армирование подстилающих слоев и набетонок  "]
["2016-09-07","Разборка покрытий полов: из керамических плиток Разборка покрытий полов: из линолеума Устройство стяжек: цементных толщиной 20 мм Армирование подстилающих слоев и набетонок  "]
["2016-09-08","Устройство стяжек: цементных толщиной 20 мм"]
["2016-09-09","Устройство стяжек: цементных толщиной 20 мм Устройство гидроизоляции обмазочной:  мастикой \"Гипердесмо\" один слой"]
["2016-09-10","Армирование подстилающих слоев и набетонок  Устройство гидроизоляции обмазочной:  мастикой \"Гипердесмо\" один слой"]
["2016-09-11"]
["2016-09-12","Устройство стяжек: цементных толщиной 20 мм Армирование подстилающих слоев и набетонок  "]
["2016-09-13","Устройство стяжек: цементных толщиной 20 мм"]
["2016-09-14","Устройство стяжек: цементных толщиной 20 мм Устройство покрытий из плит керамогранитных размером: 40х40 см"]
["2016-09-15","Устройство стяжек: цементных толщиной 20 мм Устройство покрытий из плит керамогранитных размером: 40х40 см"]
["2016-09-16","Устройство покрытий из плит керамогранитных размером: 40х40 см"]
["2016-09-17","Устройство гидроизоляции обмазочной:  мастикой \"Гипердесмо\" один слой Устройство покрытий из плит керамогранитных размером: 40х40 см"]
["2016-09-18"]
["2016-09-19","Устройство стяжек: цементных толщиной 20 мм Устройство гидроизоляции обмазочной:  мастикой \"Гипердесмо\" один слой Устройство покрытий из плит керамогранитных размером: 40х40 см"]
["2016-09-20","Устройство стяжек: цементных толщиной 20 мм"]
["2016-09-21","Устройство стяжек: цементных толщиной 20 мм"]
["2016-09-22","Устройство стяжек: цементных толщиной 20 мм"]
["2016-09-23","Устройство стяжек: цементных толщиной 20 мм Устройство покрытий из плит керамогранитных размером: 40х40 см"]
["2016-09-24","Устройство стяжек: цементных толщиной 20 мм Устройство покрытий из плит керамогранитных размером: 40х40 см"]
["2016-09-25"]
["2016-09-26","Устройство стяжек: цементных толщиной 20 мм Устройство покрытий из плит керамогранитных размером: 40х40 см"]
["2016-09-27","Устройство покрытий из плит керамогранитных размером: 40х40 см"]
["2016-09-28","Устройство покрытий из плит керамогранитных размером: 40х40 см"]
["2016-09-29","Устройство покрытий из плит керамогранитных размером: 40х40 см"]
["2016-09-30","Устройство покрытий из плит керамогранитных размером: 40х40 см"]